Cogmind - Beta 16.1 @@@ ROGUE MODE // 2026.04.19 @ 15:21:20 Player: beans Result: Destroyed self with Grenade Launcher Performance ------------- Evolutions (0) 0 Regions Visited (3) 600 Robots Destroyed (19) 95 Value Destroyed (453) 453 Prototype IDs (0) 0 Alien Tech Used (0) 0 Bonus (0) 0 TOTAL SCORE: 1148 Bonus ------- None Cogmind --------- Core Integrity 0/250 Matter 55/300 Energy 100/100 System Corruption 0% Temperature Cool (0) Movement Rolling (80) Location -10/Subcaves Parts ------- > --- POWER (1) -------- (None) > --- PROPULSION (2) --- Wheel > --- UTILITY (2) ------ Makeshift System Shield > --- WEAPON (2) ------- Grenade Launcher > --- INVENTORY (5) ---- Light Deuterium Engine Large Storage Unit Makeshift Light Armor Plating Makeshift Hacking Suite Axe Peak State ------------ > --- POWER ------------ Light Deuterium Engine > --- PROPULSION ------- Flight Unit Flight Unit > --- UTILITY ---------- Sensor Array Makeshift System Shield > --- WEAPON ----------- Axe > --- INVENTORY -------- Large Storage Unit Makeshift Light Armor Plating Assault Rifle Grenade Launcher [Rating: 13] Favorites ----------- Power Light Ion Engine Engine Light Ion Engine Propulsion Aluminum Leg Leg Aluminum Leg Wheel Wheel Flight Unit Flight Unit Utility Makeshift System Shield Device Heat Sink Hackware Makeshift System Shield Protection Light Armor Plating Weapon Grenade Launcher Ballistic Gun Assault Rifle Launcher Grenade Launcher Slashing Weapon Axe Build | -11 -10 -10 -10 ------- Run | Yrd Mat Min Sub Slots Evolved . | . . . . Power . | . . . . Propulsion . | . . . . Utility . | . . . . Weapon . | . . . . Parts Attached 17 | 4 3 6 4 Power 3 | 1 . 1 1 Engine 3 | 1 . 1 1 Core . | . . . . Reactor . | . . . . Propulsion 5 | 2 . 2 1 Treads . | . . . . Leg 2 | 2 . . . Wheel 1 | . . . 1 Hover . | . . . . Flight 2 | . . 2 . Utility 5 | . 1 2 2 Device 2 | . . 2 . Storage . | . . . . Processor . | . . . . Hackware 1 | . . . 1 Protection 2 | . 1 . 1 Artifact . | . . . . Weapon 4 | 1 2 1 . Energy Gun . | . . . . Energy Cannon . | . . . . Ballistic Gun 2 | 1 1 . . Ballistic Cannon . | . . . . Launcher 1 | . 1 . . Special Weapon . | . . . . Impact Weapon . | . . . . Slashing Weapon 1 | . . 1 . Piercing Weapon . | . . . . Special Melee Weapon . | . . . . Unidentified Prototypes . | . . . . Parts Lost 3 | . . . 3 Power . | . . . . Propulsion 2 | . . . 2 Utility 1 | . . . 1 Weapon . | . . . . Highest Loss Streak 2 | . . . 2 To Critical Strikes . | . . . . Average Backups 4 | . 3 4 4 Power . | . . . . Propulsion . | . . . . Utility 2 | . 2 2 1 Weapon 1 | . . 1 1 Tool/Special . | . . . . Unused Backups 3 | . . 1 2 Power . | . . . . Propulsion . | . . . . Utility 3 | . . 1 2 Weapon . | . . . . Tool/Special . | . . . . Average Slot Usage (%) 60 | . 71 86 45 Engine 8 | . 14 14 3 Leg 11 | . 28 21 . Flight 7 | . . 7 10 Device 2 | . . 8 . Hackware 6 | . . . 12 Protection 4 | . 1 10 3 Ballistic Gun 6 | . 17 10 . Launcher 8 | . 8 10 7 Slashing Weapon 4 | . . 3 6 Peak Build Rating 13 | 4 6 10 13 Average Rating 7 | 2 5 7 8 On Entrance 4 | . 4 6 8 Avg Prop Armor Cover (%) . | . . . . Naked Turns . | . . . . Heaviest Build 14 | 5 11 14 8 Greatest Support 20 | 20 20 20 10 Greatest Overweight (x) 2 | . . . 2 Average Overweight (x) . | . . . . Largest Inventory Capacity 5 | 5 5 5 5 Average Capacity 5 | 5 5 5 5 Most Carried 5 | 2 5 5 5 Average Carried 4 | . 3 4 4 Final Capacity 5 | 5 5 5 5 Final Carried 5 | . 5 5 5 Class Distribution -------------------- 100% | Mutant Dominant Class ---------------- Mutant | -10/Materials Mutant | -10/Mines Mutant | -10/Subcaves Resources | -11 -10 -10 -10 ----------- Run | Yrd Mat Min Sub Matter Collected 679 | 238 99 180 162 Remotely . | . . . . Salvage Created 471 | . 239 107 125 Parts 36 | . 17 7 12 Haulers Intercepted . | . . . . Recyclers Shooed 1 | . 1 . . Parts Field Recycled . | . . . . Retrieved Matter . | . . . . Parts Self-Destructed 1 | . . . 1 Prevented . | . . . . Parts Restored . | . . . . Kills | -11 -10 -10 -10 ------- Run | Yrd Mat Min Sub Combat Hostiles Destroyed 14 | . 8 1 5 Melee 1 | . . . 1 Guns 4 | . 4 . . AOE 9 | . 4 1 4 Classes Destroyed 7 | . 4 1 2 Worker 1 | . . 1 . Recycler 2 | . 1 1 . Watcher 2 | . 2 . . Swarmer 6 | . 6 . . Grunt 3 | . 2 1 . Artisan 1 | . . . 1 Subdweller 5 | . . . 5 Best Kill Streak 3 | . 3 2 3 Combat Bots Only 3 | . 3 1 3 Max Kills in Single Turn 3 | . 3 2 2 Gunslinging . | . . . . Exploded 3 | . 3 1 2 Melee 1 | . . . 1 Uniques/NPCs Destroyed . | . . . . Combat | -11 -10 -10 -10 -------- Run | Yrd Mat Min Sub Hostile Shots Fired 39 | . 13 3 23 Missed 16 | . 4 1 11 Hits 23 | . 9 2 12 Projectile 23 | . 9 2 12 Critical Strikes 1 | . . . 1 Damage Taken 538 | . 127 60 351 Core 258 | . 40 22 196 Absorbed by Shields . | . . . . Core Remaining (%) 100 | 100 . . . Volleys Fired 51 | . 22 5 24 Largest 2 | . 2 2 1 Hottest 50 | . 50 50 30 Shots Fired 78 | . 44 10 24 Gun 35 | . 30 5 . Cannon . | . . . . Launcher 43 | . 14 5 24 Special . | . . . . Kinetic 35 | . 30 5 . Thermal . | . . . . Explosive 43 | . 14 5 24 Electromagnetic . | . . . . Robot Hit Streak 8 | . 6 3 8 Robot Miss Streak 4 | . 4 2 1 Penetration Max . | . . . . Secondary Targets . | . . . . Shots Hit Robots 33 | . 18 3 12 Core Hits 33 | . 17 6 10 Critical Kills . | . . . . Critical Parts Destroyed . | . . . . Critical Strikes . | . . . . Melee Attacks 5 | . . . 5 Impact . | . . . . Slashing 5 | . . . 5 Piercing . | . . . . Sneak Attacks . | . . . . Combat Hostiles . | . . . . Follow-up Attacks . | . . . . Damage Inflicted 1609 | . 706 104 799 Guns 187 | . 173 14 . Cannons . | . . . . Explosions 1264 | . 533 90 641 Melee 158 | . . . 158 Ramming . | . . . . Kinetic 187 | . 173 14 . Thermal . | . . . . Explosive 1264 | . 533 90 641 Electromagnetic . | . . . . Impact . | . . . . Slashing 158 | . . . 158 Piercing . | . . . . Highest Corruption . | . . . . Average Corruption . | . . . . Corruption Purged . | . . . . Corruption Blocked . | . . . . Overload Shots . | . . . . Overflow Damage 21 | . 21 . . Projectiles . | . . . . Explosions 21 | . 21 . . Melee . | . . . . Knockbacks . | . . . . Impact . | . . . . Kinetic . | . . . . Secondary . | . . . . Self-Inflicted Damage 139 | . 40 32 67 Shots 7 | . 1 3 3 Rammed . | . . . . Targets Rammed . | . . . . Kicked . | . . . . Crushed . | . . . . Highest Temperature 15 | . 15 8 . Average Temperature 9 | . 11 5 . Received Heat Transfer 81 | . 18 18 45 Siege Activations . | . . . . Martial Activations . | . . . . Shielding Activations . | . . . . Robots Disrupted . | . . . . Combat Hostiles . | . . . . Robots Corrupted . | . . . . Combat Hostiles . | . . . . Parts Fried . | . . . . Impact Corruptions . | . . . . Robots Melted . | . . . . Combat Hostiles . | . . . . Parts Melted . | . . . . Heat Transferred . | . . . . Parts Sabotaged . | . . . . Parts Stolen . | . . . . Parts Stripped . | . . . . Power Chain Reactions . | . . . . Alert | -11 -10 -10 -10 ------- Run | Yrd Mat Min Sub Maximum Alert Level . | . . . . Low Security (%) 100 | 100 100 100 . Level 1 . | . . . . Level 2 . | . . . . Level 3 . | . . . . Level 4 . | . . . . Level 5 . | . . . . High Security . | . . . . Max Security . | . . . . Peak Influence 195 | . 195 140 . Initial 75 | . . 75 . Average 83 | . 93 90 . Influence Increases 390 | . 315 75 . Destroy 0b10 Robot/C 180 | . 160 20 . Destroy 0b10 Robot/NC 25 | . 15 10 . Destroy Leader 44 | . 34 10 . Disable Machine 30 | . 30 . . Destroy Structure 111 | . 76 35 . Influence Decreases 390 | . 120 230 40 Entered New Map 141 | . . 120 21 Time Decay 249 | . 120 110 19 Squads Dispatched 2 | . 1 1 . Investigation 1 | . . 1 . Extermination . | . . . . Reinforcement 1 | . 1 . . Assault . | . . . . Garrison . | . . . . Intercept . | . . . . Searches Triggered . | . . . . Construction Impeded . | . . . . Haulers Reinforced . | . . . . Active Scanning Responses . | . . . . Cargo Convoy Interrupts . | . . . . Stealth | -11 -10 -10 -10 --------- Run | Yrd Mat Min Sub Distress Signals 1 | . 1 . . Communications Jammed . | . . . . Distress Signals . | . . . . Times Spotted 24 | . 15 2 7 Peak Tracking Total 5 | . 5 2 2 Tactical Retreats . | . . . . Traps | -11 -10 -10 -10 ------- Run | Yrd Mat Min Sub Traps Triggered 1 | . . . 1 Indirectly . | . . . . Trap Hack Attempts . | . . . . Triggered . | . . . . Disarmed . | . . . . Reprogrammed . | . . . . Reused . | . . . . Traps Extracted . | . . . . Installed . | . . . . Triggered . | . . . . Machines | -11 -10 -10 -10 ---------- Run | Yrd Mat Min Sub Machines Disabled 3 | . 3 . . Max in Single Turn 1 | . 1 . . Machines Repaired . | . . . . Machines Dismantled . | . . . . Machines Sabotaged . | . . . . Overloaded Fab Kills . | . . . . Hacking | -11 -10 -10 -10 --------- Run | Yrd Mat Min Sub Machines Accessed 2 | . . 1 1 Terminals . | . . . . Fabricators . | . . . . Repair Stations . | . . . . Recycling Units . | . . . . Scanalyzers . | . . . . Garrison Access . | . . . . Total Hacks 2 | . . 1 1 Successful 2 | . . 1 1 Failed . | . . . . Catastrophic . | . . . . Database Lockouts . | . . . . Manual . | . . . . Terminals . | . . . . Fabricators . | . . . . Repair Stations . | . . . . Recycling Units . | . . . . Scanalyzers . | . . . . Garrison Access . | . . . . Terminal Hacks 2 | . . 1 1 Open Door 2 | . . 1 1 Fabricator Hacks . | . . . . Repair Station Hacks . | . . . . Recycling Unit Hacks . | . . . . Scanalyzer . | . . . . Garrison Access Hacks . | . . . . Unauthorized Hacks . | . . . . Terminals . | . . . . Fabricators . | . . . . Repair Stations . | . . . . Recycling Units . | . . . . Scanalyzers . | . . . . Garrison Access . | . . . . Data Cores Recovered . | . . . . Used . | . . . . Hacking Detections . | . . . . Full Trace Events . | . . . . Feedback Events . | . . . . Feedback Blocked . | . . . . Robot Schematics Acquired . | . . . . Robots Built . | . . . . Authchips . | . . . . Time . | . . . . Total Robot Build Rating . | . . . . Part Schematics Acquired . | . . . . Parts Built . | . . . . Authchips . | . . . . Time . | . . . . Total Part Build Rating . | . . . . Part Studies Acquired . | . . . . Parts Repaired . | . . . . Time . | . . . . Parts Recycled . | . . . . Recycled Matter . | . . . . Retrieved Matter . | . . . . Retrieved Components . | . . . . Parts Scanalyzed . | . . . . Part Schematics Acquired . | . . . . Parts Damaged . | . . . . Bothacking | -11 -10 -10 -10 ------------ Run | Yrd Mat Min Sub Used RIF Installer . | . . . . Robots Hacked . | . . . . Non-combat . | . . . . Combat . | . . . . Robot Hacks Applied . | . . . . Relay Couplers Released . | . . . . Fabnet Peak Effective % . | . . . . Robots Rewired . | . . . . Allies Hacked . | . . . . Hacks Repelled . | . . . . Allies | -11 -10 -10 -10 -------- Run | Yrd Mat Min Sub Total Allies . | . . . . Largest Group . | . . . . Highest-Rated Group . | . . . . Highest-Rated Ally . | . . . . Total Orders . | . . . . Ally Attacks . | . . . . Total Damage . | . . . . Kills . | . . . . Allies Corrupted . | . . . . Allies Melted . | . . . . Intel | -11 -10 -10 -10 ------- Run | Yrd Mat Min Sub Active Infowar (turns) 34 | . . 2 32 Sensors 34 | . . 2 32 Robot Analysis Total . | . . . . Derelict Logs Recovered 1 | . . . 1 Drone Launches . | . . . . Drone Recoveries . | . . . . Exploration | -11 -10 -10 -10 ------------- Run | Yrd Mat Min Sub Turns Passed 1195 | 54 277 235 629 Spaces Moved 1162 | 48 165 173 776 Core 256 | 16 . . 240 Treads . | . . . . Legs 313 | 32 165 116 . Wheels 4 | . . . 4 Hover . | . . . . Flight 589 | . . 57 532 Fastest Speed 37 | 50 120 37 37 Average Speed 74 | 96 120 92 58 Slowest Speed 150 | 120 120 120 150 Overloaded Moves . | . . . . Propulsion Burnouts . | . . . . Robots Hopped . | . . . . Potential Cave-ins . | . . . . Cave-ins Triggered . | . . . . Exploration Rate (%) 34 | 3 44 49 40 Regions Visited 3 Branch Regions 2 Pre-discovered Areas 2 | . . 1 1 Known Exits Taken . | . . . . Unknown Exits Taken 3 | 1 1 1 . Scrap Searched 9 | . . 1 8 Spaces Dug . | . . . . Terrain Destroyed 214 | . 75 46 93 Melee . | . . . . Projectile . | . . . . AOE 214 | . 75 46 93 Terrain Rammed . | . . . . Walls Destroyed . | . . . . Machines Disabled . | . . . . Actions | -11 -10 -10 -10 --------- Run | Yrd Mat Min Sub Total 1409 | 55 200 240 914 Wait 144 | . 4 46 94 Move 1159 | 47 164 172 776 Hop . | . . . . Pick Up 14 | 4 6 2 2 Fast Attach 6 | . 1 2 3 Attach 10 | 4 1 3 2 Detach 5 | . . 3 2 Swap 6 | . 2 1 3 Drop 9 | . . 6 3 Fire 51 | . 22 5 24 Melee 5 | . . . 5 Ram . | . . . . Kick . | . . . . Crush . | . . . . Escape Stasis . | . . . . Rewire . | . . . . Trap . | . . . . Miscellaneous . | . . . . Route ------- -11/Scrapyard -10/Materials (discovered 2 exits: [*Mat] / *Min) -10/Mines (discovered 2 exits: [*Mat] / *Sub) -10/Subcaves History --------- Turn | Location | Event 2 | -11/Scrapyard | Met Revision 17 3 | -11/Scrapyard | Discovered new exit (range 15) 55 | -11/Scrapyard | Entered Materials 175 | -10/Materials | Discovered new exit (range 14) 318 | -10/Materials | Discovered new exit (range 9) 332 | -10/Materials | Entered Mines 333 | -10/Mines | Learned location of Storage (-8) 334 | -10/Mines | Build established: Mutant 383 | -10/Mines | Met a Derelict bent on vengeance 430 | -10/Mines | Discovered new exit (range 10) 484 | -10/Mines | Met a Derelict shopkeep closing up shop 565 | -10/Mines | Discovered new exit (range 4) 567 | -10/Mines | Entered Subcaves 568 | -10/Subcaves | Approached by a straggling Scientist 638 | -10/Subcaves | Learned location of 1 exit from Materials 690 | -10/Subcaves | Core integrity fell below 50% 810 | -10/Subcaves | Shifting Twisted Machinery released Battle Rifle 842 | -10/Subcaves | Ambushed by Subdwellers from Twisted Machinery 887 | -10/Subcaves | Core integrity fell below 20% 967 | -10/Subcaves | Learned location of Zion (-6) 967 | -10/Subcaves | Met a Zionite searching for "candidates" 1124 | -10/Subcaves | Shifting Twisted Machinery released Mak. Hacking Suite 1193 | -10/Subcaves | Ambushed by angry Subdweller bent on revenge 1196 | -10/Subcaves | Destroyed self with Grenade Launcher Last Messages --------------- World map updated: -6/Zion. AZ-0G1(c): "I think it's somewhere northeast of here" The unstable cave ceiling collapses. AZ-0G1(c): "I think it's somewhere northeast of here" Mak. Hacking Suite falls loose from the Twisted Machinery. Dropped Assault Rifle. AZ-0G1(c): "I think it's somewhere east of here" Acquired Mak. Hacking Suite. 1G-YOF(u) tweaks Twisted Machinery. AZ-0G1(c): "I think it's somewhere east of here" 1G-YOF(u) cries out in pain. 1G-YOF(u) destroyed. Acquired Wheel. Acquired 6 matter. UH-92T(R) angrily emerges from the Twisted Machinery. UH-92T(R): "SUBHATE!" Map ----- +----------------------------------------------------+ | ""[ ##???????????????????????# ## #??# | | """#"#?????#????????????????#####?#####?? | | """" ??? ###?????????????????????????? | | """"?? ????????????????????????? | | # ## #"#?? ???????????????????????## | | # #?##?#??# ?????????????????????????## | | # ##?????## ???????????????????????????? | | #????##"" #???????????????????????????? | | ##???# "" #???????????????????????????? | | "### #### "" "#???????????????????????????? | | ##?#""""""## """##??????????????????????????? | | ##??# "##"""" #??????????????????????????? | | #????# """ [ "#???????????????????????????? | | ##????# "" ##??????????????????????????? | | ##?????# ## #??????????????????????????? | | ##???????## ## #?????????????????????????? | | ##?????## ## # #?????????????????????????? | | #?????# ###" ####?????????????????????????? | | ####??## ###""" ????????????????????????????? | | # ###?# ##"""##???????????????????????????? | | & #?# #?#""######???????????????????????? | | & # #?# ##?#" #"# ##??????????????????????? | | ### ### ### "" ##?????????????????????? | | # #?????????????????????? | | # ## c #??????? ????????????? | | ### @##????? ???????????? | | ### #### R ##?? #?????????????? | | ##?# #??## ## " " #" #?????????????? | | #??## #???## "####""" " #????????????? | | ##########?## " #??#""""" ###?????????????? | | # # ## # #??## " #?##""" ####???????????????? | | #???# ####??#### "#??????????????????? | | #???# ##?????????###??????????????????? | | # ## ##?? #???????????????????????????????? | | ## ##? #?# #???????????????????????????????? | | ?## #?? ### ##???????????????????????????????? | | ?# ##?? ####????????????????????????????????? | | ?## ##?? ##??????????????????????????????????? | | ## ### ## #??????????????????????????????????? | | ## #??????????????????????????????????? | | #??????????????????????????????????? | | #??????????????????????????????????? | | " " #??????????????????????????????????? | | "" "#### #??????????????????????????????????? | | " ##?## #?????????????????????????????????? | | " #??? #?????????????????????????????????? | | #??? "" ??????????????##????????????????? | | # ### """ #????????#### #######??????????? | | #"""""" ???????## ##?????????? | | "" # """" " ####??????? #?????????? | +----------------------------------------------------+ Best States ------------- Heat Dissipation 35 Energy Generation 15 Energy Capacity 200 Matter Stores 300 Matter Capacity 300 Sight Range 16 Robot Scan Range 14 Terrain Scan Density 10 Armor Coverage 150 Evasion (%) 62 Defensive Hacking 11 Item Schematics ----------------- None Robot Schematics ------------------ None Fabricated ------------ Nothing Repaired ---------- Nothing Studied --------- None Alien Tech Used ----------------- None Achievements -------------- None Challenges ------------ None Game ------ Seed ControlCloakingTrap Manual? 0 Play Time 00:14:23 Cumulative 270.4 hours Start 2026.04.19 @ 15:12:04 End 2026.04.19 @ 15:21:20 Sessions 1 Manual Loads 0 Difficulty Rogue Special Mode None Game No. 714 Rogue 712 Adventurer 2 Explorer 0 Win Type - Total 0 Types 0/0/0/0/0/0/0/0/0/0 Lore% 68 Gallery% 64 Achievement% 44 Wizard Run 0 Options --------- Layout 2 ASCII 0 Keyboard 0 Movement Mouse Keybinds 0 Fullscreen 1 Font 24/Smallcaps Map View 50x44 Zoom Use 0% Tactical HUD 0 Map Filters NONE Filters NONE Steam 1 RUN: 67f28797-a495-4efe-bf09-678b3060f27f